[Event "28th Hit Open-A 2024"]
[Site "Nova Gorica"]
[Date "2024.01.30"]
[Round "6.22"]
[White "Novak, Rok"]
[Black "Zupancic, Jernej"]
[Result "0-1"]
[ECO "B90"]
[WhiteElo "1777"]
[BlackElo "2211"]
[Annotator "TA"]
[PlyCount "80"]
[EventDate "2024.01.22"]
[EventType "swiss"]
[EventCountry "SLO"]
[SourceTitle "playchess.com"]
[Source "ChessBase"]
[SourceQuality "1"]
[TimeControl "5400+30"]

{[%evp 11,80,0,-2,12,20,14,49,33,44,17,18,17,19,38,57,52,67,72,85,91,115,77,81,67,41,70,35,66,72,69,68,0,0,0,60,0,0,0,35,37,67,65,81,85,215,-73,158,156,1268,1247,1150,1047,979,950,29993,6427,1743,672,613,357,357,-8,0,-142,0,-278,-278,-415,-261,-2470,-1060]} 1. e4 {[%emt 0:00:08]} c5 {[%emt 0:02:52]} 2. Nf3 {[%emt 0:00:08]} d6 {[%emt 0:00:16]} 3. d4 {[%emt 0:00:08]} cxd4 {[%emt 0:00:06]} 4. Nxd4 {[%emt 0:00:09]} Nf6 {[%emt 0:00:06]} 5. Nc3 {[%emt 0:00:09]} a6 {[%emt 0:00:11]} 6. f3 {[%emt 0:00:47]} e6 {[%emt 0:02:08]} 7. g4 {[%emt 0:00:39][%cal Bg2g4,Bg4g5][%mdl 32]} b5 {[%emt 0:06:49]} 8. g5 {[%emt 0:03:13]} Nfd7 {[%emt 0:00:48]} (8... b4 $5) 9. a3 {[%emt 0:02:10] White is slightly better.} Bb7 {[%emt 0:01:06]} 10. Rg1 {[%emt 0:11:30]} Nc6 {[%emt 0:02:49]} 11. Nxc6 {[%emt 0:05:56]} Bxc6 {[%emt 0:00:23]} 12. Be3 {[%emt 0:00:44]} Qb8 {[%emt 0:10:42]} 13. Qd4 {[%emt 0:09:06]} Qb7 {[%emt 0:14:46]} 14. h4 {[%emt 0:06:30][%cal Bh2h4,Bh4h5][%mdl 32]} Rd8 {[%emt 0:20:36]} 15. h5 {[%emt 0:13:28]} Rg8 {[%emt 0:03:16]} 16. g6 {[%emt 0:08:21]} hxg6 {[%emt 0:00:10]} 17. hxg6 {[%emt 0:00:19]} Ne5 {[%emt 0:01:30]} 18. gxf7+ {[%emt 0:05:09]} Qxf7 {[%emt 0:01:59]} 19. Be2 {[%emt 0:00:56]} Nxf3+ {[%emt 0:00:32]} 20. Bxf3 {[%emt 0:00:12]} Qxf3 {[%emt 0:00:08]} 21. Rf1 {[%emt 0:02:12]} (21. Qb6 $1 $14 Bxe4 22. Rf1 (22. Nxe4 Qxe4 23. O-O-O Rc8 $15) 22... Qg3+ 23. Kd2) 21... Qh5 $11 {[%emt 0:01:13]} 22. Qb6 {[%emt 0:06:07][%csl LRa6,LRc6]} Bd7 {[%emt 0:00:13]} (22... Rc8 $11) 23. Qxa6 {[%emt 0:00:42]} (23. Kd2 $14) 23... Be7 {[%emt 0:00:17]} 24. Kd2 {[%emt 0:03:46]} Bg5 {[%emt 0:03:32]} 25. Rae1 $36 {[%emt 0:00:58][%cal Od2c1,Ba1e1,Be1e3,Be3d3,Bd3f3][%mdl 2080] White has good play.} (25. Qxd6 $2 Bc6 $19) 25... Bxe3+ {[%emt 0:01:04]} 26. Rxe3 {[%emt 0:00:23][%cal Od2c1]} Qc5 {[%emt 0:00:16]} 27. Rd3 {[%emt 0:01:53][%cal Od2c1]} Bc6 {[%emt 0:01:50] [#]} (27... Rf8 $16 28. Rxf8+ (28. Qxd6 $2 Qxd6 29. Rxd6 Rxf1 $19) 28... Kxf8) 28. Nd5 $2 {[%emt 0:07:39]} Rf8 $2 {[%emt 0:05:32]} (28... exd5 29. b4 Qc4 30. exd5 Bxd5 31. Re3+ Be6 32. Rxe6+ Qxe6 33. Qxb5+ (33. Re1 Qxe1+ 34. Kxe1 Kd7 $16) 33... Ke7 34. Re1 $18) (28... Ra8 $1 $17 {[%cal Ra8a6] keeps the pressure on.} 29. b4 (29. Nc7+ $2 Ke7 $19) 29... Rxa6 (29... exd5 $2 30. Qxa8+ Bxa8 31. bxc5 $18) 30. bxc5 exd5 31. exd5 Ba8) 29. b4 $16 {[%emt 0:02:44] White wants to mate with Rxf8+.} Qc4 $2 {[%emt 0:04:57]} (29... Rf2+ $16 30. Rxf2 Qxf2+ 31. Kc1 Bxd5 32. exd5 (32. Qxb5+ Kf8 $18) 32... Ke7) 30. Rxf8+ $18 {[%emt 0:04:59]} Kxf8 {[%emt 0:00:02]} 31. Rf3+ {[%emt 0:01:10]} Ke8 {[%emt 0:00:01][%cal Bf8e8,Be8e7,Be7d7][%mdl 32] [#]} 32. Qa7 $1 {[%emt 0:00:57]} Bd7 {[%emt 0:02:09]} (32... Bb7 33. Qxb7) 33. Nc7+ {[%emt 0:01:37]} (33. Qf2 $142 Qc3+ 34. Kxc3 (34. Nxc3 Bc8 35. Rf8+ Kd7 36. Qa7+ Kc6 37. Rxd8 Bd7 38. Rxd7 g6 39. Rc7#) 34... Rc8+ 35. Kd2 Rxc2+ 36. Kxc2 Kd8 37. Qb6+ Ke8 38. Qb8+ Bc8 39. Qxc8#) 33... Ke7 {[%emt 0:00:08] [#]} 34. Qe3 $1 {[%emt 0:00:23]} Bc6 {[%emt 0:01:49]} 35. Qg5+ {[%emt 0:01:52]} Kd7 {[%emt 0:00:00]} 36. Rf7+ $2 {[%emt 0:00:20]} (36. Qxg7+ $18 Kc8 37. Na8 Bxa8 38. Rc3 Bxe4 39. Rxc4+ bxc4 40. b5) 36... Kc8 $11 {[%emt 0:00:02] Some like it hot} 37. Qxg7 {[%emt 0:00:10] [#]} (37. Qe3 $11 {remains equal.} Rd7 (37... Qxe4 38. Qxe4 Bxe4 39. Rxg7 $16) (37... Bxe4 38. Qc3 $11) 38. Na8 Bxa8 (38... Rxf7 $2 39. Nb6+ Kb7 40. Nxc4 $18) 39. Rxd7 Kxd7 40. Qa7+ Qc7 41. Qxa8) 37... Qxe4 {[%emt 0:01:58]} ({Better is} 37... Bd7 $1 $17 38. Na8 Qc6) 38. Nxe6 {[%emt 0:00:57][%mdl 8192]} Qxe6 $19 {[%emt 0:00:15]} 39. Rc7+ {[%emt 0:00:20]} Kb8 {[%emt 0:00:10] Threatens to win with ...Rg8.} 40. Rxc6 $2 {[%emt 0:00:11]} (40. Re7 Qd5+ 41. Kc1) 40... Qd5+ {[%emt 0:00:08] Weighted Error Value: White=0.99/Black=0.51.  Loses game:     	White=1     	Black=1      Missed win:     	White=1     	---        Mistake:       	White=4     	Black=4      Inaccurate:     	White=2     	Black=4      OK:         	White=10    	Black=4      Best:        	White=3     	Black=3} 0-1

[Event "28th Hit Open-A 2024"]
[Site "Nova Gorica"]
[Date "2024.01.30"]
[Round "6.23"]
[White "Marchesich, Giovanni"]
[Black "Pagnutti, Lorenzo"]
[Result "1-0"]
[ECO "C84"]
[WhiteElo "2210"]
[BlackElo "1859"]
[Annotator "TA"]
[PlyCount "58"]
[EventDate "2024.01.22"]
[EventType "swiss"]
[EventCountry "SLO"]
[SourceTitle "playchess.com"]
[Source "ChessBase"]
[SourceQuality "1"]
[TimeControl "5400+30"]

{[%evp 18,58,0,0,0,0,7,8,14,6,42,55,56,54,53,41,37,51,62,51,58,57,79,47,58,17,11,8,14,14,44,46,46,31,35,28,30,18,35,0,57,0,13]} 1. e4 {[%emt 0:00:03]} e5 {[%emt 0:00:15]} 2. Nf3 {[%emt 0:00:22]} Nc6 {[%emt 0:00:12]} 3. Bb5 {[%emt 0:00:04]} a6 {[%emt 0:00:22]} 4. Ba4 {[%emt 0:00:06]} Nf6 {[%emt 0:00:23]} 5. O-O {[%emt 0:00:08]} b5 {[%emt 0:00:16]} 6. Bb3 {[%emt 0:00:05]} Be7 {[%emt 0:00:13]} 7. d3 {[%emt 0:00:12]} O-O {[%emt 0:00:17]} 8. Nc3 {[%emt 0:00:14]} d6 {[%emt 0:00:24]} 9. a3 {[%emt 0:00:09]} Bg4 {[%emt 0:01:23]} 10. Be3 {[%emt 0:00:32]} Nd4 {[%emt 0:00:50]} 11. Bxd4 {[%emt 0:00:08]} exd4 {[%emt 0:00:09]} 12. Nd5 {[%emt 0:00:04]} c5 {[%emt 0:02:37]} 13. a4 {[%emt 0:04:25] aiming for axb5.} Nxd5 {[%emt 0:01:46]} 14. Bxd5 {[%emt 0:00:17]} Rb8 {[%emt 0:00:23]} 15. axb5 {[%emt 0:05:56]} axb5 {[%emt 0:00:14]} 16. Ra7 {[%emt 0:02:56]} Bf6 {[%emt 0:02:14]} 17. h3 {[%emt 0:01:26]} Be6 {[%emt 0:01:49] Black is weak on the light squares} 18. Bxe6 {[%emt 0:05:09]} fxe6 {[%emt 0:00:03]} 19. Qa1 {[%emt 0:00:27]} Qe8 {[%emt 0:03:42]} 20. Qa2 {[%emt 0:01:19] White is much more active.} Bd8 {[%emt 0:00:44][%cal Bf6d8,Bd8b6,Bb6c5][%mdl 32]} 21. Nh2 {[%emt 0:06:55]} Bb6 {[%emt 0:00:35]} 22. Ra6 {[%emt 0:01:46]} Qc8 {[%emt 0:04:00]} 23. Ra1 {[%emt 0:07:22]} c4 {[%emt 0:04:21]} 24. Nf3 {[%emt 0:03:24]} h6 {[%emt 0:02:04]} 25. Qa3 {[%emt 0:05:00]} Qc7 {[%emt 0:02:29]} 26. Qb4 {[%emt 0:01:12]} Bc5 {[%emt 0:03:31]} 27. Qa5 {[%emt 0:00:27]} Qf7 {[%emt 0:02:54]} 28. Rc6 {[%emt 0:04:10]} Rb7 {[%emt 0:08:47]} (28... e5 $11) 29. b4 {[%emt 0:08:15]} cxb3 $1 {[%emt 0:02:05][%mdl 32768] Weighted Error Value: White=0.11 (very precise) /Black=0.12 (very precise) .  Mistake:       	---       	Black=1      Inaccurate:     	White=4     	Black=2      OK:         	White=7     	Black=5      Best:        	White=2     	Black=1      Strong:       	---       	Black=1     . Loss on time!?} ({Much worse is} 29... Ra7 $6 30. Ra6 Rxa6 31. Qxa6 Bxb4 32. Qxb5 $16) 1-0

[Event "28th Hit Open-A 2024"]
[Site "Nova Gorica"]
[Date "2024.01.30"]
[Round "6.24"]
[White "Rigatti, Giorgio"]
[Black "Garsky, Vladyslav"]
[Result "1-0"]
[ECO "B75"]
[WhiteElo "1749"]
[BlackElo "2186"]
[Annotator "TA"]
[PlyCount "109"]
[EventDate "2024.01.22"]
[EventType "swiss"]
[EventCountry "SLO"]
[SourceTitle "playchess.com"]
[Source "ChessBase"]
[SourceQuality "1"]
[TimeControl "5400+30"]

{[%evp 14,109,59,20,41,43,42,62,66,70,66,70,67,63,87,97,96,103,100,94,208,131,191,143,133,125,134,92,121,99,108,104,112,77,77,0,0,0,34,0,0,0,0,0,0,0,0,0,0,0,0,0,0,0,0,0,0,0,0,0,0,0,0,0,0,0,0,0,0,-8,-8,-45,277,278,344,227,12796,12013,1528,879,29952,29956,29978,29977,29975,29977,29964,29964,29966,29967,29968,29965,29973,29974,29972,29975,5118,1739]} 1. e4 {[%emt 0:00:04]} c5 {[%emt 0:01:58]} 2. Nf3 {[%emt 0:00:10]} d6 {[%emt 0:00:55]} 3. d4 {[%emt 0:02:36]} cxd4 {[%emt 0:00:36]} 4. Nxd4 {[%emt 0:00:04]} Nf6 {[%emt 0:00:06]} 5. Nc3 {[%emt 0:00:05]} a6 {[%emt 0:01:34]} 6. Be3 {[%emt 0:02:51]} g6 {[%emt 0:03:36]} 7. f3 {[%emt 0:00:47]} Bg7 {[%emt 0:00:19]} 8. Bc4 {[%emt 0:00:25]} Nbd7 {[%emt 0:06:33]} 9. Qd2 {[%emt 0:02:09]} h5 {[%emt 0:02:22]} 10. O-O-O {[%emt 0:02:59]} b5 {[%emt 0:03:25] White is slightly better.} 11. Bd5 {[%emt 0:03:15]} Nxd5 {[%emt 0:03:02]} 12. Nxd5 {[%emt 0:00:37]} Bb7 {[%emt 0:10:07] Prevents Nc6} 13. Bg5 {[%emt 0:08:42]} Nf6 {[%emt 0:16:54]} 14. Nxf6+ $1 {[%emt 0:05:46]} exf6 {[%emt 0:00:05]} 15. Bf4 {[%emt 0:00:33]} O-O {[%emt 0:03:23]} 16. Nb3 {[%emt 0:02:25]} d5 {[%emt 0:01:24]} 17. Na5 {[%emt 0:03:19]} Qd7 {[%emt 0:02:30]} (17... Qb6 $16) 18. Nxb7 {[%emt 0:00:59]} ({Better is} 18. exd5 $18 {Hoping for d6.} Rfd8 19. d6) 18... Qxb7 $16 {[%emt 0:00:04]} 19. Qxd5 {[%emt 0:00:08]} Qb6 {[%emt 0:00:06]} 20. Qb3 {[%emt 0:10:18] White has more active pieces.} Rfd8 {[%emt 0:02:13]} 21. Be3 {[%emt 0:03:41]} Qc7 {[%emt 0:01:48]} 22. g3 {[%emt 0:01:47]} Rac8 {[%emt 0:02:03]} 23. Rxd8+ {[%emt 0:00:43]} Rxd8 {[%emt 0:00:41]} 24. Rd1 {[%emt 0:03:32]} (24. Re1 $16) 24... Rxd1+ $11 {[%emt 0:00:13]} 25. Kxd1 {[%emt 0:00:01][%mdl 4096] Endgame. KQB-KQB} h4 {[%emt 0:00:54]} 26. Bf4 {[%emt 0:03:04]} Qc5 {[%emt 0:00:50]} 27. Qe3 {[%emt 0:02:01]} Qc4 {[%emt 0:01:31]} 28. b3 {[%emt 0:00:49]} Qf1+ {[%emt 0:00:13]} 29. Kd2 {[%emt 0:00:17]} h3 {[%emt 0:01:21]} 30. Bd6 {[%emt 0:03:28]} a5 {[%emt 0:07:35]} 31. a3 {[%emt 0:03:14]} Qg2+ {[%emt 0:02:30]} 32. Qe2 {[%emt 0:03:26]} Qg1 {[%emt 0:00:05]} 33. b4 {[%emt 0:01:03] Threatens to win with Bc5.} a4 {[%emt 0:02:36]} 34. Bc5 {[%emt 0:01:10]} Qh1 {[%emt 0:00:02]} 35. Bd4 {[%emt 0:02:24]} Bh6+ {[%emt 0:05:35]} 36. f4 $1 {[%emt 0:07:02]} Bg7 {[%emt 0:00:24]} 37. Bc5 {[%emt 0:01:09]} f5 {[%emt 0:02:38]} 38. exf5 {[%emt 0:01:21]} Qd5+ {[%emt 0:02:54]} 39. Qd3 {[%emt 0:00:24]} Qg2+ {[%emt 0:00:04]} (39... Qxd3+ $2 40. Kxd3 Bb2 41. c4 bxc4+ 42. Kxc4 Bxa3 43. Kb5 $18) 40. Qe2 {[%emt 0:00:02]} Bb2 {[%emt 0:10:41]} (40... Qxe2+ 41. Kxe2 Bc3 42. Kd3 $18) 41. Qxg2 {[%emt 0:01:59]} hxg2 {[%emt 0:00:04]} 42. fxg6 {[%emt 0:00:18]} fxg6 {[%emt 0:01:29][%mdl 8192] [#] KB-KB. A mistake that costs the game.} (42... Bxa3 $15 {keeps the upper hand.} 43. gxf7+ Kxf7) 43. c3 $1 $18 {[%emt 0:01:06]} Kf7 {[%emt 0:00:23][%cal Of7e6]} 44. Kc2 {[%emt 0:00:10]} Bxa3 {[%emt 0:00:17]} (44... Ba1 45. Bd4 Ke6) 45. h4 {[%emt 0:00:34]} Kf6 {[%emt 0:00:14] [#]} 46. g4 $1 {[%emt 0:00:06][%cal Bg3g4,Bg4f5][%mdl 32] Black must now prevent Bd4+.} Kg7 {[%emt 0:00:06]} 47. Bd4+ {[%emt 0:02:08]} Kh6 {[%emt 0:00:43]} 48. Kb1 {[%emt 0:00:38]} Kh7 {[%emt 0:00:19]} 49. f5 {[%emt 0:00:27]} gxf5 {[%emt 0:00:09]} 50. gxf5 {[%emt 0:00:02]} Kh6 {[%emt 0:00:12]} 51. f6 {[%emt 0:00:13]} Kg6 {[%emt 0:00:03] [#]} 52. h5+ $1 {[%emt 0:00:16][%mdl 512]} Kf7 {[%emt 0:00:02]} 53. Kc2 {[%emt 0:00:20]} g1=Q {[%emt 0:00:23]} 54. Bxg1 {[%emt 0:00:10]} Kxf6 {[%emt 0:00:02]} 55. Be3 {[%emt 0:00:10] Weighted Error Value: White=0.13 (very precise) /Black=0.37.  Loses game:     	---       	Black=1      Mistake:       	White=2     	Black=3      Inaccurate:     	White=5     	Black=2      OK:         	White=8     	Black=18     Best:        	White=4     	Black=2      Strong:       	White=3     	---} 1-0

[Event "28th Hit Open-A 2024"]
[Site "Nova Gorica"]
[Date "2024.01.30"]
[Round "6.25"]
[White "Zlatanovic, Srdjan"]
[Black "Caruso, Augusto"]
[Result "1-0"]
[ECO "A43"]
[WhiteElo "1675"]
[BlackElo "2159"]
[Annotator "TA"]
[PlyCount "97"]
[EventDate "2024.01.22"]
[EventType "swiss"]
[EventCountry "SLO"]
[SourceTitle "playchess.com"]
[Source "ChessBase"]
[SourceQuality "1"]
[TimeControl "5400+30"]

{[%evp 9,97,0,6,0,2,14,12,11,23,29,29,2,0,0,2,-10,0,-17,-12,-20,-16,-47,-37,-39,-45,-27,-19,-19,-27,-42,-16,-55,-19,-12,0,-41,-6,-10,0,-9,-2,-28,-20,-27,0,0,33,0,4,4,4,0,0,0,25,35,20,21,27,23,150,143,151,149,154,145,172,0,0,0,44,38,134,149,218,209,263,260,395,379,440,412,945,908,29978,29979,29978,29979,29996,688]} 1. d4 {[%emt 0:00:30]} e6 {[%emt 0:05:53]} 2. Nf3 {[%emt 0:00:35]} c5 {[%emt 0:00:18]} 3. c3 {[%emt 0:00:50]} Nc6 {[%emt 0:00:05]} 4. Bf4 {[%emt 0:00:28]} Qb6 {[%emt 0:00:59]} 5. Qb3 {[%emt 0:00:53]} Qxb3 {[%emt 0:02:20]} 6. axb3 {[%emt 0:00:02] White wants to play Na3.} cxd4 {[%emt 0:00:08]} 7. Nxd4 {[%emt 0:00:18]} Nxd4 {[%emt 0:02:29]} 8. cxd4 {[%emt 0:00:01] The position is equal.} Bb4+ {[%emt 0:00:38]} 9. Bd2 {[%emt 0:00:01]} Bxd2+ {[%emt 0:05:29]} 10. Nxd2 {[%emt 0:00:05]} d5 {[%emt 0:00:12] Against Nc4} 11. e3 {[%emt 0:00:20]} Ne7 {[%emt 0:04:23]} 12. Bd3 {[%emt 0:00:07]} Bd7 {[%emt 0:00:57]} 13. O-O {[%emt 0:00:09]} Nc6 {[%emt 0:01:05]} 14. Rfc1 {[%emt 0:00:40]} a6 {[%emt 0:02:23]} 15. Bb5 {[%emt 0:02:55]} Nb4 {[%emt 0:00:57]} 16. Be2 {[%emt 0:03:01]} Ke7 {[%emt 0:05:13]} 17. Nb1 {[%emt 0:08:19]} Rhc8 {[%emt 0:05:55]} 18. Nc3 {[%emt 0:00:12]} f6 {[%emt 0:09:14]} 19. f4 {[%emt 0:00:49]} Kd6 {[%emt 0:10:15]} 20. e4 {[%emt 0:20:19]} Nc6 {[%emt 0:10:47]} 21. Rd1 {[%emt 0:09:13]} Nb4 {[%emt 0:01:40]} 22. Kf2 {[%emt 0:04:41]} Bc6 {[%emt 0:00:21]} 23. e5+ {[%emt 0:07:55]} fxe5 {[%emt 0:00:02]} 24. fxe5+ {[%emt 0:00:12]} Ke7 {[%emt 0:00:01]} 25. Bd3 {[%emt 0:02:11]} Rf8+ {[%emt 0:01:52]} 26. Ke3 {[%emt 0:00:28]} Be8 {[%emt 0:08:22]} (26... Nxd3 {simplifies} 27. Rxd3 Rf7 28. Ke2 Rc8) 27. Rac1 {[%emt 0:04:35]} g5 {[%emt 0:07:35]} 28. Bb1 {[%emt 0:00:46]} h5 {[%emt 0:00:20]} 29. Rf1 {[%emt 0:01:58]} Bd7 {[%emt 0:00:15]} 30. Ne2 {[%emt 0:01:21]} Nc6 {[%emt 0:02:26]} 31. Ng3 {[%emt 0:01:07]} Be8 {[%emt 0:01:35]} 32. Rxf8 {[%emt 0:01:46]} Kxf8 {[%emt 0:00:01]} 33. Rf1+ {[%emt 0:00:28]} Kg7 {[%emt 0:00:01]} 34. Ne2 {[%emt 0:04:21]} Na5 {[%emt 0:00:24]} (34... Rc8 $11 {keeps the balance.}) 35. Rf6 $16 {[%emt 0:00:23]} Bf7 {[%emt 0:00:34][%cal Oa8h8] [#]} 36. h4 $1 {[%emt 0:00:01][%mdl 512]} gxh4 {[%emt 0:03:56][%cal Oa8h8]} 37. Nf4 {[%emt 0:01:11]} Re8 {[%emt 0:00:18]} 38. Nh3 $2 {[%emt 0:00:01]} (38. Rxf7+ $18 Kxf7 39. Bg6+ Ke7 40. Bxe8 Kxe8 41. Nxe6 (41. Nxh5 Kf7 $17) 41... Nxb3 42. Nc7+ Kf8 43. Nxd5) 38... Nxb3 $11 {[%emt 0:01:39]} 39. Ng5 {[%emt 0:05:32]} Bg8 {[%emt 0:00:01]} 40. Bg6 {[%emt 0:05:41]} (40. Rg6+ $6 Kh8 $16) 40... Re7 {[%emt 0:01:20]} (40... Rf8 41. Rxf8 (41. Bxh5 $2 Rxf6 42. exf6+ Kxf6 $19) (41. Nxe6+ Bxe6 42. Rxe6 Na5 $16) 41... Kxf8 42. Bxh5 $17) ({Black should play} 40... Rc8 $14) 41. Bxh5 $16 {[%emt 0:00:39] White is more active.} Na5 {[%emt 0:00:29]} (41... Na1 $16) 42. Bg4 $18 {[%emt 0:04:47]} Nc4+ {[%emt 0:00:58]} 43. Kf4 {[%emt 0:00:43]} Nxb2 {[%emt 0:00:41]} (43... Na5 {was necessary.} 44. Bxe6 (44. Nxe6+ Bxe6 45. Rxe6 Rxe6 $18) 44... Nc6 45. Bxg8 Kxg8) 44. Nxe6+ {[%emt 0:00:25]} (44. Bxe6 Nc4 $16) 44... Bxe6 {[%emt 0:01:56]} 45. Bxe6 {[%emt 0:01:08] KRB-KRN} (45. Rxe6 Rxe6 46. Bxe6 Nd3+ 47. Ke3 Nb4 $19) 45... Nd3+ {[%emt 0:00:55]} (45... Nd1 $142 46. Kg5 (46. Bxd5 Nc3 $18) 46... Nc3 47. Rg6+ (47. Kxh4 $2 Ne4 $19) 47... Kh7) 46. Kg5 {[%emt 0:00:39]} Nb4 {[%emt 0:00:20]} 47. Rg6+ {[%emt 0:01:37] White mates.} ({Worse is} 47. Kxh4 Nc6 $11) 47... Kh8 {[%emt 0:00:51]} 48. Kf6 {[%emt 0:00:45]} ({Weaker is} 48. Kxh4 Nc6 $16) 48... Kh7 {[%emt 0:01:11]} 49. Bg8+ {[%emt 0:00:20] Weighted Error Value: White=0.11 (very precise) /Black=0.38.  Missed win:     	White=1     	---        Mistake:       	---       	Black=5      Inaccurate:     	White=6     	Black=7      OK:         	White=15    	Black=15     Best:        	White=6     	Black=1      Brilliant:      	White=1     	---} 1-0

[Event "28th Hit Open-A 2024"]
[Site "Nova Gorica"]
[Date "2024.01.30"]
[Round "6.26"]
[White "Centrih, Aleks"]
[Black "Racnik, Tone"]
[Result "1-0"]
[ECO "B07"]
[WhiteElo "2082"]
[BlackElo "1849"]
[Annotator "NA RC"]
[PlyCount "49"]
[EventDate "2024.01.22"]
[EventType "swiss"]
[EventCountry "SLO"]
[SourceTitle "playchess.com"]
[Source "ChessBase"]
[SourceQuality "1"]
[TimeControl "5400+30"]

1. e4 {[%emt 0:00:13]} d6 {[%emt 0:00:09]} 2. d4 {[%emt 0:00:07]} Nf6 {[%emt 0:00:06]} 3. Nc3 {[%emt 0:00:05]} g6 {[%emt 0:00:07]} 4. Be3 {[%emt 0:00:07]} Bg7 {[%emt 0:00:28]} 5. Qd2 {[%emt 0:00:09]} O-O {[%emt 0:00:18]} 6. O-O-O {[%emt 0:00:22]} c6 {[%emt 0:03:17]} 7. f3 {[%emt 0:02:50]} b5 {[%emt 0:00:44]} 8. Bh6 {[%emt 0:00:12]} Qa5 {[%emt 0:03:24]} 9. h4 {[%emt 0:01:01]} Nbd7 {[%emt 0:13:55]} 10. h5 {[%emt 0:14:39]} b4 {[%emt 0:09:51]} 11. Nb1 {[%emt 0:00:08]} Qxa2 {[%emt 0:02:04]} 12. Bxg7 {[%emt 0:09:30]} Kxg7 {[%emt 0:00:07]} 13. hxg6 {[%emt 0:00:06]} fxg6 {[%emt 0:00:05]} 14. Qh6+ {[%emt 0:01:27]} Kg8 {[%emt 0:04:29]} 15. b3 {[%emt 0:02:45]} Rf7 {[%emt 0:11:12]} 16. e5 {[%emt 0:21:40]} a5 {[%emt 0:15:25]} 17. exf6 {[%emt 0:05:01]} Nxf6 {[%emt 0:00:15]} 18. Qd2 {[%emt 0:07:48]} a4 {[%emt 0:03:29]} 19. Qxb4 {[%emt 0:15:07]} a3 {[%emt 0:05:29]} 20. Kd2 {[%emt 0:11:23]} Qb2 {[%emt 0:02:09]} 21. Qc3 {[%emt 0:00:47]} Qa2 {[%emt 0:03:27]} 22. Bc4 {[%emt 0:01:01]} d5 {[%emt 0:00:36]} 23. Bd3 {[%emt 0:01:41]} Rb8 {[%emt 0:00:55]} 24. Ne2 {[%emt 0:02:53]} e6 {[%emt 0:00:39]} 25. Qa5 {[%emt 0:04:32]} 1-0

[Event "28th Hit Open-A 2024"]
[Site "Nova Gorica"]
[Date "2024.01.30"]
[Round "6.27"]
[White "Gergolet, Jan"]
[Black "Markocic, Tine"]
[Result "1/2-1/2"]
[ECO "B42"]
[WhiteElo "1632"]
[BlackElo "2055"]
[Annotator "NA RC"]
[PlyCount "43"]
[EventDate "2024.01.22"]
[EventType "swiss"]
[EventCountry "SLO"]
[SourceTitle "playchess.com"]
[Source "ChessBase"]
[SourceQuality "1"]
[TimeControl "5400+30"]

1. e4 {[%emt 0:00:28]} c5 {[%emt 0:00:09]} 2. Nf3 {[%emt 0:00:21]} e6 {[%emt 0:00:20]} 3. d4 {[%emt 0:00:08]} cxd4 {[%emt 0:00:11]} 4. Nxd4 {[%emt 0:00:02]} a6 {[%emt 0:00:42]} 5. Bd3 {[%emt 0:00:19]} Nf6 {[%emt 0:02:25]} 6. Qe2 {[%emt 0:00:32]} d6 {[%emt 0:00:38]} 7. c4 {[%emt 0:00:35]} Qc7 {[%emt 0:03:02]} 8. O-O {[%emt 0:02:01]} g6 {[%emt 0:03:07]} 9. Nc3 {[%emt 0:01:24]} Bg7 {[%emt 0:00:13]} 10. Be3 {[%emt 0:03:01]} O-O {[%emt 0:03:58]} 11. Rfd1 {[%emt 0:02:24]} Nbd7 {[%emt 0:06:16]} 12. Rac1 {[%emt 0:06:28]} b6 {[%emt 0:04:48]} 13. f3 {[%emt 0:02:13]} Bb7 {[%emt 0:00:51]} 14. b3 {[%emt 0:02:45]} Rac8 {[%emt 0:02:09]} 15. Qd2 {[%emt 0:01:39]} Qb8 {[%emt 0:09:54]} 16. Bf1 {[%emt 0:02:23]} Rfd8 {[%emt 0:05:26]} 17. Bg5 {[%emt 0:03:59]} Bf8 {[%emt 0:11:32]} 18. Nc2 {[%emt 0:07:28]} Be7 {[%emt 0:04:08]} 19. Kh1 {[%emt 0:04:33]} Bc6 {[%emt 0:02:44]} 20. Nb4 {[%emt 0:12:11]} Bb7 {[%emt 0:00:28]} 21. Nc2 {[%emt 0:01:28]} Bc6 {[%emt 0:02:02]} 22. Qf4 {[%emt 0:00:15]} 1/2-1/2

[Event "28th Hit Open-A 2024"]
[Site "Nova Gorica"]
[Date "2024.01.30"]
[Round "6.28"]
[White "Petrovcic, Cvetko"]
[Black "Bazilius, Augustinas"]
[Result "0-1"]
[ECO "B43"]
[WhiteElo "1611"]
[BlackElo "2030"]
[Annotator "NA RC"]
[PlyCount "69"]
[EventDate "2024.01.22"]
[EventType "swiss"]
[EventCountry "SLO"]
[SourceTitle "playchess.com"]
[Source "ChessBase"]
[SourceQuality "1"]
[TimeControl "5400+30"]

1. e4 {[%emt 0:00:00]} c5 {[%emt 0:01:48]} 2. Nf3 {[%emt 0:00:38]} a6 {[%emt 0:00:31]} 3. Nc3 {[%emt 0:01:14]} e6 {[%emt 0:00:08]} 4. d4 {[%emt 0:00:56]} cxd4 {[%emt 0:00:01]} 5. Nxd4 {[%emt 0:01:35]} b5 {[%emt 0:00:05]} 6. e5 {[%emt 0:00:41]} Bb7 {[%emt 0:01:16]} 7. Qg4 {[%emt 0:03:06]} d5 {[%emt 0:16:19]} 8. Bd3 {[%emt 0:00:57]} Nd7 {[%emt 0:01:48]} 9. Qg3 {[%emt 0:00:59]} b4 {[%emt 0:05:40]} 10. Nce2 {[%emt 0:01:36]} Qc7 {[%emt 0:00:16]} 11. Bf4 {[%emt 0:03:51]} Ne7 {[%emt 0:00:07]} 12. O-O {[%emt 0:00:46]} Ng6 {[%emt 0:00:06]} 13. Bxg6 {[%emt 0:00:27]} hxg6 {[%emt 0:00:01]} 14. Rac1 {[%emt 0:00:50]} a5 {[%emt 0:19:33]} 15. c3 {[%emt 0:00:15]} Qb6 {[%emt 0:00:13]} 16. Be3 {[%emt 0:02:37]} Qa6 {[%emt 0:00:35]} 17. Rc2 {[%emt 0:06:55]} Be7 {[%emt 0:01:05]} 18. Bf4 {[%emt 0:02:01]} Nc5 {[%emt 0:01:27]} 19. f3 {[%emt 0:16:36]} O-O {[%emt 0:09:45]} 20. Bg5 {[%emt 0:01:32]} Bxg5 {[%emt 0:01:13]} 21. Qxg5 {[%emt 0:00:04]} Qb6 {[%emt 0:01:15]} 22. f4 {[%emt 0:04:26]} Ne4 {[%emt 0:06:54]} 23. Qh4 {[%emt 0:00:44]} bxc3 {[%emt 0:00:38]} 24. bxc3 {[%emt 0:01:06]} Ba6 {[%emt 0:00:15]} 25. Rf3 {[%emt 0:07:46]} Bxe2 {[%emt 0:04:35]} 26. Rxe2 {[%emt 0:00:12]} Nxc3 {[%emt 0:00:22]} 27. Rxc3 {[%emt 0:05:40]} Qxd4+ {[%emt 0:00:16]} 28. Rce3 {[%emt 0:00:52]} Rac8 {[%emt 0:00:02]} 29. Qf2 {[%emt 0:03:38]} Rc1+ {[%emt 0:05:02]} 30. Re1 {[%emt 0:00:13]} Rfc8 {[%emt 0:00:09]} 31. h3 {[%emt 0:05:06]} R8c2 {[%emt 0:00:23]} 32. Kh2 {[%emt 0:02:21]} Rxf2 {[%emt 0:00:05]} 33. Kg1 {[%emt 0:00:47]} Rfc2 {[%emt 0:00:19]} 34. Rxc1 {[%emt 0:00:03]} Rf2 {[%emt 0:00:04]} 35. Rce1 {[%emt 0:00:08]} 0-1